fUST/lending_fUST_20240417
["ID","MTS","AMOUNT","RATE_DAILY","PERIOD"]
[322806923,1713337858281,-566.74,0.00071232,120]
[322806924,1713337858290,-500.0,0.00071232,120]
[322806925,1713337858300,-504.19621977,0.00071232,120]
[322806926,1713337858309,-500.0,0.00071232,120]
[322806927,1713337858318,-168.247331,0.00073059,120]
[322806928,1713337858326,-625.12,0.00073972,120]
[322806929,1713337858336,-162.375864,0.00075342,120]
[322806930,1713337858345,-500.0,0.00076712,120]
[322806931,1713337858354,-630.66117281,0.00076712,120]
[322806932,1713337858363,-625.12,0.00076712,120]
[322806933,1713337858371,-500.0,0.00076712,120]
[322806934,1713337858380,-500.0,0.00076712,120]
[322806935,1713337858390,-507.1399808,0.00076712,120]
[322806936,1713337858398,-500.0,0.00076712,120]
[322806937,1713337858407,-500.0,0.00076712,120]
[322806938,1713337858416,-500.0,0.00076712,120]
[322806939,1713337858425,-500.0,0.00076712,120]
[322806940,1713337858434,-500.0,0.00076712,120]
[322806941,1713337858443,-500.0,0.00076712,120]
[322806942,1713337858452,-500.0,0.00076712,120]
[322806943,1713337858461,-500.0,0.00076712,120]
[322806944,1713337858470,-500.0,0.00076712,120]
[322806945,1713337858479,-500.0,0.00076712,120]
[322806946,1713337858488,-500.0,0.00076712,120]
[322806947,1713337858497,-500.0,0.00076712,120]
[322806948,1713337858506,-500.0,0.00076712,120]
[322806949,1713337858515,-504.09203415,0.00076712,120]
[322806950,1713337858524,-500.0,0.00076712,120]
[322806951,1713337858533,-500.0,0.00076712,120]
[322806952,1713337858542,-512.51504714,0.00076712,120]
[322806953,1713337858551,-1000.0,0.00076712,120]
[322806954,1713337858560,-504.40180254,0.00076712,120]
[322806955,1713337858569,-500.0,0.00076712,120]
[322806956,1713337858578,-500.0,0.00076712,120]
[322806957,1713337858587,-1403.52,0.00076712,120]
[322806958,1713337858596,-500.0,0.00076712,120]
[322806959,1713337858604,-4112.21,0.00076712,120]
[322806960,1713337858614,-505.77937968,0.00076712,120]
[322806961,1713337858623,-500.0,0.00076712,120]
[322806962,1713337858633,-500.0,0.00076712,120]
[322806963,1713337858642,-500.0,0.00076712,120]
[322806964,1713337858651,-500.0,0.00076712,120]
[322806965,1713337858660,-500.0,0.00076712,120]
[322806966,1713337858669,-500.0,0.00076712,120]
[322806967,1713337858678,-500.0,0.00076712,120]
[322806968,1713337858687,-500.0,0.00076712,120]
[322806969,1713337858696,-500.0,0.00076712,120]
[322806970,1713337858705,-500.0,0.00076712,120]
[322806971,1713337858714,-505.18647601,0.00076712,120]
[322806972,1713337858723,-500.0,0.00076712,120]
[322806973,1713337858734,-500.0,0.00076712,120]
[322806974,1713337858743,-500.0,0.00076712,120]
[322806975,1713337858752,-500.0,0.00076712,120]
[322806976,1713337858761,-500.0,0.00076712,120]
[322806977,1713337858770,-500.0,0.00076712,120]
[322806978,1713337858779,-500.0,0.00076712,120]
[322806979,1713337858788,-947.88,0.00076712,120]
[322806980,1713337858797,-638.96579452,0.00076712,120]
[322806981,1713337858806,-500.0,0.00076712,120]
[322806982,1713337858815,-500.0,0.00076712,120]
[322806983,1713337858823,-500.0,0.00076712,120]
[322806984,1713337858832,-500.0,0.00076712,120]
[322806985,1713337858841,-524.62,0.00076712,120]
[322806986,1713337858850,-500.0,0.00076712,120]
[322806987,1713337858859,-500.0,0.00076712,120]
[322806988,1713337858868,-15160.81,0.00076712,120]
[322806989,1713337858877,-500.0,0.00076712,120]
[322806990,1713337858885,-500.0,0.00076712,120]
[322806991,1713337858894,-500.0,0.00076712,120]
[322806992,1713337858903,-500.0,0.00076712,7]
[322806993,1713337858913,-500.0,0.00076712,60]
[322806994,1713337858922,-500.0,0.00076712,120]
[322806995,1713337858931,-11805.15,0.00076712,120]
[322806996,1713337858940,-500.0,0.00076712,120]
[322806997,1713337858949,-553.2864821,0.00076712,120]
[322806998,1713337858959,-500.0,0.00076712,120]
[322806999,1713337858968,-500.0,0.00076712,120]
[322807000,1713337858977,-633.61543277,0.00076712,120]
[322807001,1713337858986,-2067.76,0.00076712,120]
[322807002,1713337858995,-3027.72,0.00076712,120]
[322807003,1713337859004,-500.0,0.00076712,120]
[322807004,1713337859015,-543.74111297,0.00076712,120]
[322807005,1713337859025,-4276.09,0.00076712,120]
[322807006,1713337859035,-500.0,0.00076712,120]
[322807007,1713337859044,-500.0,0.00076712,120]
[322807008,1713337859053,-500.0,0.00076712,120]
[322807009,1713337859063,-500.0,0.00076712,120]
[322807010,1713337859074,-500.0,0.00076712,120]
[322807011,1713337859083,-500.0,0.00076712,120]
[322807012,1713337859092,-500.0,0.00076712,120]
[322807013,1713337859102,-500.0,0.00076712,120]
[322807014,1713337859111,-500.0,0.00076712,120]
[322807015,1713337859120,-500.0,0.00076712,120]
[322807016,1713337859129,-500.0,0.00076712,120]
[322807017,1713337859139,-500.0,0.00076712,120]
[322807018,1713337859148,-566.74,0.00076712,120]
[322807019,1713337859157,-500.0,0.00076712,120]
[322807020,1713337859166,-5000.0,0.00079,120]
[322807021,1713337859176,-1392.07798055,0.00079,120]
[322807022,1713337859184,-151.0,0.00079,120]
[322807023,1713337859193,-625.12,0.00079452,120]
[322807024,1713337859202,-2673.95985429,0.0008,120]
[322807025,1713337859211,-2000.0,0.0008,120]
[322807026,1713337859220,-1792.664725,0.0008,120]
[322807027,1713337859231,-302.77330592,0.0008,105]
[322807028,1713337859240,-586.0,0.000818,30]
[322807029,1713337859249,-500.0,0.00082191,120]
[322807030,1713337859258,-625.12,0.00082191,120]
[322807031,1713337859267,-500.0,0.00082191,120]
[322807032,1713337859277,-500.0,0.00082191,120]
[322807033,1713337859286,-504.46485135,0.00082191,120]
[322807034,1713337859294,-500.0,0.00082191,120]
[322807035,1713337859303,-500.0,0.00082191,120]
[322807036,1713337859313,-617.74231065,0.00082191,120]
[322807037,1713337859321,-311.98878824,0.00082191,120]
[322807038,1713337859330,-500.0,0.00082191,120]
[322807039,1713337859340,-500.0,0.00082191,120]
[322807040,1713337859349,-500.0,0.00082191,120]
[322807041,1713337859358,-500.0,0.00082191,120]
[322807042,1713337859367,-397.38122306,0.00082191,120]
[322807043,1713337859376,-500.0,0.00082191,120]
[322807044,1713337859385,-535.21763132,0.00082191,120]
[322807045,1713337859394,-500.0,0.00082191,120]
[322807046,1713337859403,-500.0,0.00082191,120]
[322807047,1713337859412,-500.0,0.00082191,120]
[322807048,1713337859421,-500.0,0.00082191,120]
[322807049,1713337859430,-500.0,0.00082191,120]
[322807050,1713337859439,-1403.52,0.00082191,120]
[322807051,1713337859448,-500.0,0.00082191,120]
[322807052,1713337859457,-4112.21,0.00082191,120]
[322807053,1713337859466,-500.0,0.00082191,120]
[322807054,1713337859476,-500.0,0.00082191,120]
[322807055,1713337859485,-500.0,0.00082191,120]
[322807056,1713337859494,-558.93975821,0.00082191,120]
[322807057,1713337859504,-505.44658537,0.00082191,120]
[322807058,1713337859512,-500.0,0.00082191,120]
[322807059,1713337859521,-500.0,0.00082191,120]
[322807060,1713337859530,-500.0,0.00082191,120]
[322807061,1713337859539,-542.01330333,0.00082191,120]
[322807062,1713337859548,-495.20269321,0.00082191,120]
[322807063,1713337859557,-1673.517292,0.00082191,14]
[322807064,1713337859566,-1673.517284,0.00082191,14]
[322807065,1713337859575,-151.0,0.00082191,120]
[322807066,1713337859584,-500.0,0.00082191,120]
[322807067,1713337859593,-622.011097,0.00082191,120]
[322807068,1713337859603,-500.0,0.00082191,120]
[322807069,1713337859612,-622.011091,0.00082191,120]
[322807070,1713337859621,-500.0,0.00082191,120]
[322807071,1713337859633,-500.0,0.00082191,120]
[322807072,1713337859648,-500.0,0.00082191,120]
[322807073,1713337859658,-500.0,0.00082191,120]
[322807074,1713337859666,-557.837551,0.00082191,120]
[322807075,1713337859675,-700.513654,0.00082191,120]
[322807076,1713337859684,-557.837549,0.00082191,120]
[322807077,1713337859693,-700.513648,0.00082191,120]
[322807078,1713337859702,-246.07293698,0.00082191,120]
[322807079,1713337859711,-947.88,0.00082191,120]
[322807080,1713337859720,-500.0,0.00082191,120]
[322807081,1713337859729,-500.0,0.00082191,120]
[322807082,1713337859738,-500.0,0.00082191,120]
[322807083,1713337859747,-482.43154373,0.00082191,120]
[322807084,1713337859759,-524.62,0.00082191,120]
[322807085,1713337859774,-500.0,0.00082191,120]
[322807086,1713337859783,-506.75941209,0.00082191,120]
[322807087,1713337859878,-15160.81,0.00082191,120]
[322807088,1713337859887,-500.0,0.00082191,120]
[322807089,1713337859896,-500.0,0.00082191,120]
[322807090,1713337859905,-500.0,0.00082191,120]
[322807091,1713337859914,-460.91377401,0.00082191,7]
[322807092,1713337859923,-4511.721143,0.00082191,120]
[322807093,1713337859932,-500.0,0.00082191,60]
[322807094,1713337859942,-4511.721139,0.00082191,120]
[322807095,1713337859950,-173.46619584,0.00082191,120]
[322807096,1713337859959,-11805.15,0.00082191,120]
[322807097,1713337859968,-500.0,0.00082191,120]
[322807098,1713337859979,-1057.456144,0.00082191,120]
[322807099,1713337859988,-500.0,0.00082191,120]
[322807100,1713337859997,-500.0,0.00082191,120]
[322807101,1713337860006,-1057.456148,0.00082191,120]
[322807102,1713337860015,-2067.76,0.00082191,120]
[322807103,1713337860024,-1240.111605,0.00082191,120]
[322807104,1713337860034,-3027.72,0.00082191,120]
[322807105,1713337860043,-1240.111605,0.00082191,120]
[322807106,1713337860053,-500.0,0.00082191,120]
[322807107,1713337860064,-4276.09,0.00082191,120]
[322807108,1713337860075,-500.0,0.00082191,120]
[322807109,1713337860083,-500.0,0.00082191,120]
[322807110,1713337860092,-279.830414,0.00082191,120]
[322807111,1713337860101,-500.0,0.00082191,120]
[322807112,1713337860112,-151.0,0.00082191,120]
[322807113,1713337860122,-279.830422,0.00082191,120]
[322807114,1713337860131,-500.0,0.00082191,120]
[322807115,1713337860141,-500.0,0.00082191,120]
[322807116,1713337860151,-500.0,0.00082191,120]
[322807117,1713337860160,-500.0,0.00082191,120]
[322807118,1713337860169,-153.10392964,0.00082191,120]
[322807119,1713337860179,-500.0,0.00082191,120]
[322807120,1713337860188,-500.0,0.00082191,120]
[322807121,1713337860197,-500.0,0.00082191,120]
[322807122,1713337860206,-470.07691834,0.00082191,120]
[322807123,1713337860215,-566.74,0.00082191,120]
[322807124,1713337860224,-500.0,0.00082191,120]
[322807125,1713337860236,-168.247331,0.00082192,120]
[322807126,1713337860245,-162.375864,0.00082192,120]
[322807127,1713337860255,-1000.0,0.00082885,120]
[322807128,1713337860265,-625.12,0.00084931,120]
[322807129,1713337860274,-2000.0,0.00085,120]
[322807130,1713337860283,-496.18474514,0.00087671,120]
[322807131,1713337860292,-625.12,0.00087671,120]
[322807132,1713337860301,-508.09182971,0.00087671,120]
[322807133,1713337860310,-500.0,0.00087671,120]
[322807134,1713337860319,-500.0,0.00087671,120]
[322807135,1713337860328,-500.0,0.00087671,120]
[322807136,1713337860337,-500.0,0.00087671,120]
[322807137,1713337860346,-500.0,0.00087671,120]
[322807138,1713337860355,-500.0,0.00087671,120]
[322807139,1713337860364,-500.0,0.00087671,120]
[322807140,1713337860373,-500.0,0.00087671,120]
[322807141,1713337860382,-506.78097409,0.00087671,120]
[322807142,1713337860391,-500.0,0.00087671,120]
[322807143,1713337860400,-568.77587086,0.00087671,120]
[322807144,1713337860409,-500.0,0.00087671,120]
[322807145,1713337860418,-286.89508963,0.00087671,120]
[322807146,1713337860427,-1403.52,0.00087671,120]
[322807147,1713337860436,-500.0,0.00087671,120]
[322807148,1713337860444,-4112.21,0.00087671,120]
[322807149,1713337860453,-383.70493109,0.00087671,120]
[322807150,1713337860462,-500.0,0.00087671,120]
[322807151,1713337860471,-500.0,0.00087671,120]
[322807152,1713337860481,-500.0,0.00087671,120]
[322807153,1713337860490,-500.0,0.00087671,120]
[322807154,1713337860499,-224.84858556,0.00087671,120]
[322807155,1713337860508,-512.370004,0.00087671,120]
[322807156,1713337860517,-500.0,0.00087671,120]
[322807157,1713337860526,-505.41202031,0.00087671,120]
[322807158,1713337860535,-500.0,0.00087671,120]
[322807159,1713337860544,-500.0,0.00087671,120]
[322807160,1713337860553,-500.0,0.00087671,120]
[322807161,1713337860562,-947.88,0.00087671,120]
[322807162,1713337860571,-212.7326785,0.00087671,120]
[322807163,1713337860580,-500.0,0.00087671,120]
[322807164,1713337860589,-500.0,0.00087671,120]
[322807165,1713337860598,-524.62,0.00087671,120]
[322807166,1713337860607,-500.0,0.00087671,120]
[322807167,1713337860617,-15160.81,0.00087671,120]
[322807168,1713337860626,-500.0,0.00087671,120]
[322807169,1713337860635,-500.0,0.00087671,120]
[322807170,1713337860645,-500.0,0.00087671,60]
[322807171,1713337860655,-11805.15,0.00087671,120]
[322807172,1713337860664,-500.0,0.00087671,120]
[322807173,1713337860674,-500.0,0.00087671,120]
[322807174,1713337860686,-513.19610182,0.00087671,120]
[322807175,1713337860695,-2067.76,0.00087671,120]
[322807176,1713337860704,-3027.72,0.00087671,120]
[322807177,1713337860714,-500.0,0.00087671,120]
[322807178,1713337860723,-4276.09,0.00087671,120]
[322807179,1713337860733,-500.0,0.00087671,120]
[322807180,1713337860743,-500.0,0.00087671,120]
[322807181,1713337860754,-500.0,0.00087671,120]
[322807182,1713337860764,-500.0,0.00087671,120]
[322807183,1713337860774,-500.0,0.00087671,120]
[322807184,1713337860783,-500.0,0.00087671,120]
[322807185,1713337860792,-500.0,0.00087671,120]
[322807186,1713337860802,-500.0,0.00087671,120]
[322807187,1713337860811,-538.95896587,0.00087671,120]
[322807188,1713337860822,-500.0,0.00087671,120]
[322807189,1713337860831,-566.74,0.00087671,120]
[322807190,1713337860841,-500.0,0.00087671,120]
[322807191,1713337860851,-5000.0,0.00089,120]
[322807192,1713337860860,-162.375864,0.00089041,120]
[322807193,1713337860870,-2000.0,0.0009,120]
[322807194,1713337860879,-625.12,0.0009041,120]
[322807195,1713337860888,-168.247331,0.00091324,120]
[322807196,1713337860897,-625.12,0.0009315,120]
[322807197,1713337860907,-500.0,0.0009315,120]
[322807198,1713337860916,-500.0,0.0009315,120]
[322807199,1713337860925,-500.0,0.0009315,120]
[322807200,1713337860935,-500.0,0.0009315,120]
[322807201,1713337860944,-500.0,0.0009315,120]
[322807202,1713337860954,-500.0,0.0009315,120]
[322807203,1713337860963,-397.28866239,0.0009315,120]
[322807204,1713337860974,-500.0,0.0009315,120]
[322807205,1713337860986,-500.0,0.0009315,120]
[322807206,1713337860995,-233.08020645,0.0009315,120]
[322807207,1713337861005,-1403.52,0.0009315,120]
[322807208,1713337861014,-500.0,0.0009315,120]
[322807209,1713337861023,-4112.21,0.0009315,120]
[322807210,1713337861032,-500.0,0.0009315,120]
[322807211,1713337861041,-500.0,0.0009315,120]
[322807212,1713337861051,-500.0,0.0009315,120]
[322807213,1713337861060,-500.0,0.0009315,120]
[322807214,1713337861074,-500.0,0.0009315,120]
[322807215,1713337861083,-639.89334736,0.0009315,120]
[322807216,1713337861092,-329.26268306,0.0009315,120]
[322807217,1713337861102,-500.0,0.0009315,120]
[322807218,1713337861112,-947.88,0.0009315,120]
[322807219,1713337861122,-500.0,0.0009315,120]
[322807220,1713337861130,-500.0,0.0009315,120]
[322807221,1713337861140,-524.62,0.0009315,120]
[322807222,1713337861149,-500.0,0.0009315,120]
[322807223,1713337861158,-15160.81,0.0009315,120]
[322807224,1713337861167,-500.0,0.0009315,120]
[322807225,1713337861176,-500.0,0.0009315,120]
[322807226,1713337861185,-213.18538166,0.0009315,60]
[322807227,1713337861194,-11805.15,0.0009315,120]
[322807228,1713337861203,-500.0,0.0009315,120]
[322807229,1713337861212,-500.0,0.0009315,120]
[322807230,1713337861222,-2067.76,0.0009315,120]
[322807231,1713337861234,-3027.72,0.0009315,120]
[322807232,1713337861243,-447.58821701,0.0009315,120]
[322807233,1713337861253,-4276.09,0.0009315,120]
[322807234,1713337861262,-500.0,0.0009315,120]
[322807235,1713337861271,-500.0,0.0009315,120]
[322807236,1713337861280,-500.0,0.0009315,120]
[322807237,1713337861289,-500.0,0.0009315,120]
[322807238,1713337861298,-500.0,0.0009315,120]
[322807239,1713337861306,-500.0,0.0009315,120]
[322807240,1713337861315,-506.37053657,0.0009315,120]
[322807241,1713337861325,-500.0,0.0009315,120]
[322807242,1713337861334,-500.0,0.0009315,120]
[322807243,1713337861343,-566.74,0.0009315,120]
[322807244,1713337861352,-500.0,0.0009315,120]
[322807245,1713337861361,-2000.0,0.00095,120]
[322807246,1713337861369,-625.12,0.0009589,120]
[322807247,1713337861378,-500.0,0.0009589,120]
[322807248,1713337861387,-162.375864,0.0009589,120]
[322807249,1713337861396,-1000.0,0.0009718,120]
[322807250,1713337861406,-625.12,0.0009863,120]
[322807251,1713337861415,-500.0,0.0009863,120]
[322807252,1713337861424,-222.47857092,0.0009863,120]
[322807253,1713337861433,-500.0,0.0009863,120]
[322807254,1713337861442,-424.91371391,0.0009863,120]
[322807255,1713337861451,-500.0,0.0009863,120]
[322807256,1713337861460,-218.97482667,0.0009863,120]
[322807257,1713337861469,-500.0,0.0009863,120]
[322807258,1713337861481,-500.0,0.0009863,120]
[322807259,1713337861491,-1403.52,0.0009863,120]
[322807260,1713337861499,-500.0,0.0009863,120]
[322807261,1713337861508,-4112.21,0.0009863,120]
[322807262,1713337861517,-500.0,0.0009863,120]
[322807263,1713337861526,-500.0,0.0009863,120]
[322807264,1713337861535,-500.0,0.0009863,120]
[322807265,1713337861545,-500.0,0.0009863,120]
[322807266,1713337861554,-500.0,0.0009863,120]
[322807267,1713337861563,-500.0,0.0009863,120]
[322807268,1713337861572,-947.88,0.0009863,120]
[322807269,1713337861581,-500.0,0.0009863,120]
[322807270,1713337861590,-593.52209139,0.0009863,120]
[322807271,1713337861600,-524.62,0.0009863,120]
[322807272,1713337861609,-500.0,0.0009863,120]
[322807273,1713337861618,-15160.81,0.0009863,120]
[322807274,1713337861627,-500.0,0.0009863,120]
[322807275,1713337861637,-500.0,0.0009863,120]
[322807276,1713337861647,-11805.15,0.0009863,120]
[322807277,1713337861656,-500.0,0.0009863,120]
[322807278,1713337861666,-500.0,0.0009863,120]
[322807279,1713337861675,-2067.76,0.0009863,120]
[322807280,1713337861684,-3027.72,0.0009863,120]
[322807281,1713337861694,-4276.09,0.0009863,120]
[322807282,1713337861703,-500.0,0.0009863,120]
[322807283,1713337861713,-500.0,0.0009863,120]
[322807284,1713337861723,-500.0,0.0009863,120]
[322807285,1713337861736,-500.0,0.0009863,120]
[322807286,1713337861745,-500.0,0.0009863,120]
[322807287,1713337861754,-500.0,0.0009863,120]
[322807288,1713337861764,-571.72928429,0.0009863,120]
[322807289,1713337861773,-500.0,0.0009863,120]
[322807290,1713337861782,-566.74,0.0009863,120]
[322807291,1713337861791,-489.32423454,0.0009863,120]
[322807292,1713337861801,-963.0,0.000987,120]
[322807293,1713337861811,-6168.0,0.000988,120]
[322807294,1713337861821,-2000.0,0.00099,120]
[322807295,1713337861830,-10000.0,0.00099,120]
[322807296,1713337861839,-740.0404,0.000999,120]
[322807297,1713337861849,-10000.0000248,0.001,120]
[322807298,1713337861859,-2000.0,0.001,120]
[322807299,1713337861869,-168.247331,0.00100457,120]
[322807300,1713337861879,-625.12,0.00101369,120]
[322807301,1713337861888,-162.375864,0.0010274,120]
[322807302,1713337861898,-625.12,0.00104109,120]
[322807303,1713337861907,-500.0,0.00104109,120]
[322807304,1713337861995,-500.0,0.00104109,120]
[322807305,1713337862005,-503.03917365,0.00104109,120]
[322807306,1713337862017,-196.35659177,0.00104109,120]
[322807307,1713337862027,-167.58856588,0.00104109,120]
[322807308,1713337862036,-1403.52,0.00104109,120]
[322807309,1713337862047,-500.0,0.00104109,120]
[322807310,1713337862057,-4112.21,0.00104109,120]
[322807311,1713337862069,-500.0,0.00104109,120]
[322807312,1713337862078,-500.0,0.00104109,120]
[322807313,1713337862088,-500.0,0.00104109,120]
[322807314,1713337862098,-500.0,0.00104109,120]
[322807315,1713337862107,-500.0,0.00104109,120]
[322807316,1713337862116,-500.0,0.00104109,120]
[322807317,1713337862125,-947.88,0.00104109,120]
[322807318,1713337862135,-500.0,0.00104109,120]
[322807319,1713337862145,-524.62,0.00104109,120]
[322807320,1713337862155,-370.25714789,0.00104109,120]
[322807321,1713337862164,-15160.81,0.00104109,120]
[322807322,1713337862173,-500.0,0.00104109,120]
[322807323,1713337862182,-500.0,0.00104109,120]
[322807324,1713337862191,-11805.15,0.00104109,120]
[322807325,1713337862200,-500.0,0.00104109,120]
[322807326,1713337862209,-500.0,0.00104109,120]
[322807327,1713337862218,-2067.76,0.00104109,120]
[322807328,1713337862230,-3027.72,0.00104109,120]
[322807329,1713337862240,-4276.09,0.00104109,120]
[322807330,1713337862249,-226.32865411,0.00104109,120]
[322807331,1713337862258,-500.0,0.00104109,120]
[322807332,1713337862267,-500.0,0.00104109,120]
[322807333,1713337862277,-304.28221365,0.00104109,120]
[322807334,1713337862286,-500.0,0.00104109,120]
[322807335,1713337862295,-500.0,0.00104109,120]
[322807336,1713337862304,-500.0,0.00104109,120]
[322807337,1713337862313,-566.74,0.00104109,120]
[322807338,1713337862322,-625.12,0.00106849,120]
[322807339,1713337862331,-168.247331,0.00109589,120]
[322807340,1713337862340,-625.12,0.00109589,120]
[322807341,1713337862349,-500.0,0.00109589,120]
[322807342,1713337862359,-500.0,0.00109589,120]
[322807343,1713337862368,-1403.52,0.00109589,120]
[322807344,1713337862377,-238.46742383,0.00109589,120]
[322807345,1713337862386,-4112.21,0.00109589,120]
[322807346,1713337862395,-483.03515042,0.00109589,120]
[322807347,1713337862405,-500.0,0.00109589,120]
[322807348,1713337862414,-500.0,0.00109589,120]
[322807349,1713337862423,-500.0,0.00109589,120]
[322807350,1713337862432,-269.64494124,0.00109589,120]
[322807351,1713337862441,-500.0,0.00109589,120]
[322807352,1713337862450,-947.88,0.00109589,120]
[322807353,1713337862459,-500.0,0.00109589,120]
[322807354,1713337862468,-524.62,0.00109589,120]
[322807355,1713337862477,-15160.81,0.00109589,120]
[322807356,1713337862487,-500.0,0.00109589,120]
[322807357,1713337862496,-500.0,0.00109589,120]
[322807358,1713337862505,-500.0,0.00109589,120]
[322807359,1713337862514,-11805.15,0.00109589,120]
[322807360,1713337862523,-500.0,0.00109589,120]
[322807361,1713337862532,-445.28938482,0.00109589,120]
[322807362,1713337862541,-2067.76,0.00109589,120]
[322807363,1713337862550,-3027.72,0.00109589,120]
[322807364,1713337862560,-4276.09,0.00109589,120]
[322807365,1713337862569,-500.0,0.00109589,120]
[322807366,1713337862579,-500.0,0.00109589,120]
[322807367,1713337862588,-500.0,0.00109589,120]
[322807368,1713337862597,-500.0,0.00109589,120]
[322807369,1713337862606,-500.0,0.00109589,120]
[322807370,1713337862616,-566.74,0.00109589,120]
[322807371,1713337862625,-162.375864,0.00109589,120]
[322807372,1713337862634,-47983.0488335,0.0011,120]
[322807373,1713337862644,-625.12,0.00112328,120]
[322807374,1713337862653,-1000.0,0.0011404,120]
[322807375,1713337862662,-625.12,0.00115068,120]
[322807376,1713337862670,-500.0,0.00115068,120]
[322807377,1713337862680,-500.0,0.00115068,120]
[322807378,1713337862689,-1403.52,0.00115068,120]
[322807379,1713337862697,-4112.21,0.00115068,120]
[322807380,1713337862707,-500.0,0.00115068,120]
[322807381,1713337862716,-500.0,0.00115068,120]
[322807382,1713337862725,-500.0,0.00115068,120]
[322807383,1713337862737,-500.0,0.00115068,120]
[322807384,1713337862746,-947.88,0.00115068,120]
[322807385,1713337862756,-500.0,0.00115068,120]
[322807386,1713337862765,-524.62,0.00115068,120]
[322807387,1713337862774,-15160.81,0.00115068,120]
[322807388,1713337862782,-500.0,0.00115068,120]
[322807389,1713337862792,-500.0,0.00115068,120]
[322807390,1713337862803,-11805.15,0.00115068,120]
[322807391,1713337862814,-500.0,0.00115068,120]
[322807392,1713337862826,-2067.76,0.00115068,120]
[322807393,1713337862836,-3027.72,0.00115068,120]
[322807394,1713337862846,-4276.09,0.00115068,120]
[322807395,1713337862856,-500.0,0.00115068,120]
[322807396,1713337862865,-500.0,0.00115068,120]
[322807397,1713337862874,-500.0,0.00115068,120]
[322807398,1713337862882,-500.0,0.00115068,120]
[322807399,1713337862891,-500.0,0.00115068,120]
[322807400,1713337862900,-566.74,0.00115068,120]
[322807401,1713337862909,-162.375864,0.00116438,120]
[322807402,1713337862918,-625.12,0.00117808,120]
[322807403,1713337862927,-168.247331,0.00118721,120]
[322807404,1713337862936,-2000.0,0.00120449,120]
[322807405,1713337862945,-625.12,0.00120547,120]
[322807406,1713337862954,-500.0,0.00120547,120]
[322807407,1713337862963,-500.0,0.00120547,120]
[322807408,1713337862972,-1403.52,0.00120547,120]
[322807409,1713337862987,-4112.21,0.00120547,120]
[322807410,1713337862996,-500.0,0.00120547,120]
[322807411,1713337863006,-500.0,0.00120547,120]
[322807412,1713337863015,-225.35878575,0.00120547,120]
[322807413,1713337863024,-500.0,0.00120547,120]
[322807414,1713337863074,-947.88,0.00120547,120]
[322807415,1713337863084,-500.0,0.00120547,120]
[322807416,1713337863094,-524.62,0.00120547,120]
[322807417,1713337863105,-15160.81,0.00120547,120]
[322807418,1713337863115,-189.03621135,0.00120547,120]
[322807419,1713337863124,-500.0,0.00120547,120]
[322807420,1713337863135,-11805.15,0.00120547,120]
[322807421,1713337863146,-500.0,0.00120547,120]
[322807422,1713337863156,-2067.76,0.00120547,120]